[Event "Swiss National League-A 2024"]
[Site "Luzern"]
[Date "2024.10.12"]
[Round "8.25"]
[White "Klauser, Markus"]
[Black "Peng, Li Min"]
[Result "0-1"]
[ECO "B90"]
[WhiteElo "2324"]
[BlackElo "2496"]
[Annotator "TA"]
[PlyCount "66"]
[EventDate "2023.10.03"]
[EventType "team-tourn"]
[EventCountry "SUI"]
[SourceTitle "playchess.com"]
[Source "ChessBase"]
[SourceQuality "1"]
[TimeControl "40/8400+30:20/3000+30:900+30"]

{[%evp 20,66,18,0,6,-16,-8,-41,-61,-52,-32,-149,-165,-152,-150,-161,-156,-147,-164,-150,-155,-155,-141,-210,-154,-266,-236,-333,-329,-518,-404,-472,-463,-543,-571,-571,-576,-548,-574,-547,-522,-1436,-1406,-1864,-725,-714,-666,-627,-597]} 1. e4 {[%emt 0:40:03]} c5 {[%emt 0:40:05]} 2. Nf3 {[%emt 0:00:06]} d6 {[%emt 0:00:04]} 3. d4 {[%emt 0:00:11]} cxd4 {[%emt 0:00:04]} 4. Nxd4 {[%emt 0:00:06]} Nf6 {[%emt 0:00:04]} 5. Nc3 {[%emt 0:00:09]} a6 {[%emt 0:00:02]} 6. Be3 {[%emt 0:00:23]} Ng4 {[%emt 0:00:05]} 7. Bc1 {[%emt 0:00:16]} Nf6 {[%emt 0:00:04]} 8. Be3 {[%emt 0:00:05]} e5 {[%emt 0:08:58]} 9. Nf3 {[%emt 0:00:10]} Qc7 {[%emt 0:00:09]} 10. a4 {[%emt 0:00:13]} Be7 {[%emt 0:06:45]} 11. a5 {[%emt 0:05:15]} O-O {[%emt 0:00:14]} 12. Bb6 {[%emt 0:04:32]} Qc6 {[%emt 0:00:48][%cal Oc8e6]} 13. Ra4 {[%emt 0:03:29]} Be6 {[%emt 0:03:34] Hoping for ...Nbd7. Black is slightly better.} 14. Ng5 {[%emt 0:01:05]} d5 {[%emt 0:00:04]} 15. Nxe6 {[%emt 0:30:11]} (15. exd5 $15 Bxd5 16. Bd3) 15... fxe6 $17 {[%emt 0:00:07]} 16. Bd3 {[%emt 0:14:14][%cal Of2f4]} Nbd7 {[%emt 0:00:02]} 17. O-O {[%emt 0:07:46]} Nxb6 {[%emt 0:00:04]} 18. axb6 {[%emt 0:00:06]} d4 {[%emt 0:03:29][%cal Oe7c5] [#] Strongly threatening ...Bc5!} ({Resist} 18... Qxb6 19. exd5 Qxb2 (19... exd5 20. Nxd5 Nxd5 21. Bc4 $17) 20. d6 Bxd6 21. Ne4 $15) 19. Rc4 {[%emt 0:00:09]} Qxb6 {[%emt 0:00:02] Black is more active.} 20. Ne2 {[%emt 0:05:10] White is weak on the dark squares} Qxb2 {[%emt 0:00:53]} 21. h3 {[%emt 0:08:30]} (21. Qb1 $17 Qxb1 22. Rxb1) 21... Bd6 {[%emt 0:05:33]} 22. g3 {[%emt 0:05:43]} (22. Qb1 $17 Qxb1 23. Rxb1) 22... Qa3 {[%emt 0:07:34]} 23. f4 {[%emt 0:01:09]} (23. Qb1 {is a better defense.} b5 24. Rc6) 23... Nd7 $19 {[%emt 0:00:05]} 24. f5 {[%emt 0:01:28]} (24. Qb1 $142) 24... Nb6 {[%emt 0:00:14]} 25. Kg2 {[%emt 0:04:33]} Kh8 {[%emt 0:01:55] Black is clearly winning.} 26. Qb1 {[%emt 0:07:00]} Nxc4 {[%emt 0:00:16]} 27. Bxc4 {[%emt 0:00:02]} exf5 {[%emt 0:00:45]} 28. exf5 {[%emt 0:02:49]} Qc5 {[%emt 0:00:29]} 29. Be6 {[%emt 0:02:09]} e4 {[%emt 0:00:39]} 30. Qxb7 {[%emt 0:00:56]} Qxc2 {[%emt 0:00:32]} 31. f6 {[%emt 0:01:30]} gxf6 {[%emt 0:00:05]} 32. Rf2 {[%emt 0:01:26]} e3 {[%emt 0:00:33]} 33. Bf5 {[%emt 0:00:46][%csl Gf5][%cal Rb7h7] [#]} Qc7 {[%emt 0:00:06] White got outplayed after the opening.   Weighted Error Value: White=0.91/Black=0.32.  Mistake:       	White=5     	---        Inaccurate:     	White=3     	---        OK:         	White=5     	Black=10} 0-1

[Event "Swiss National League-A 2024"]
[Site "Luzern"]
[Date "2024.10.12"]
[Round "8.26"]
[White "Prusikin, Michael"]
[Black "Mattenberger, Matthias"]
[Result "0-1"]
[ECO "E61"]
[WhiteElo "2516"]
[BlackElo "2238"]
[Annotator "TA"]
[PlyCount "72"]
[EventDate "2023.10.03"]
[EventType "team-tourn"]
[EventCountry "SUI"]
[SourceTitle "playchess.com"]
[Source "ChessBase"]
[SourceQuality "1"]
[TimeControl "40/8400+30:20/3000+30:900+30"]

{[%evp 14,71,20,20,16,11,15,13,25,18,23,25,22,29,41,33,62,64,53,47,35,22,36,-14,86,79,86,81,75,74,147,144,214,214,227,129,133,132,127,139,146,2,2,7,9,7,8,8,36,0,0,0,0,-21,0,-29,-40,-29989,-29990,-29999]} 1. d4 {[%emt 0:40:02]} Nf6 {[%emt 0:40:13]} 2. Nf3 {[%emt 0:00:04]} g6 {[%emt 0:00:12]} 3. e3 {[%emt 0:01:02]} Bg7 {[%emt 0:00:26]} 4. Be2 {[%emt 0:00:13]} O-O {[%emt 0:00:36]} 5. O-O {[%emt 0:00:04]} d6 {[%emt 0:00:33]} 6. c4 {[%emt 0:02:14]} c5 {[%emt 0:00:17]} 7. Nc3 {[%emt 0:00:09]} cxd4 {[%emt 0:00:30]} 8. exd4 {[%emt 0:00:48]} d5 {[%emt 0:00:26]} 9. Re1 {[%emt 0:03:38]} Nc6 {[%emt 0:08:03]} 10. h3 {[%emt 0:04:09] Prevents Bg4.} Be6 {[%emt 0:09:40] The position is equal.} 11. c5 {[%emt 0:09:56]} Ne4 {[%emt 0:05:42]} 12. Bb5 {[%emt 0:01:30]} Nxc3 {[%emt 0:08:35]} 13. bxc3 {[%emt 0:00:03]} Bd7 {[%emt 0:01:31]} 14. Rb1 {[%emt 0:08:09]} e6 {[%emt 0:08:23]} 15. Bf4 {[%emt 0:08:01]} b6 {[%emt 0:08:46]} 16. Bd6 {[%emt 0:15:23]} Re8 {[%emt 0:01:40]} 17. Qa4 {[%emt 0:02:17]} Qc8 {[%emt 0:02:04]} 18. Rb2 {[%emt 0:08:02]} (18. Qa3 $14 Qd8 19. Rb2) 18... a6 {[%emt 0:02:33]} (18... bxc5 $1 $11 19. Bxc5 (19. dxc5 Bxc3 20. Ba6 Qd8 $15) 19... a6 20. Bxc6 Bxc6) 19. Bxc6 $16 {[%emt 0:00:21]} Bxc6 {[%emt 0:00:39] Black is weak on the dark squares} 20. Qc2 {[%emt 0:05:52]} bxc5 {[%emt 0:03:56]} 21. dxc5 {[%emt 0:03:37]} Ra7 {[%emt 0:02:46]} ({Better is} 21... Rd8) 22. Reb1 {[%emt 0:07:41]} Rb7 {[%emt 0:00:56]} (22... Ra8 $16 {was necessary.}) 23. Rxb7 $18 {[%emt 0:00:29]} Bxb7 {[%emt 0:00:07] A strong pair of Bishops.} 24. Qa4 {[%emt 0:01:52] Dodges e5} ({White should play} 24. Rb6 $18) 24... Bc6 $16 {[%emt 0:13:50] [#]} 25. Qa5 {[%emt 0:00:09]} e5 {[%emt 0:02:49]} 26. Rb8 {[%emt 0:01:04]} Qe6 {[%emt 0:01:56] [#]} 27. Qxa6 {[%emt 0:05:55]} ({White has to play} 27. Rb6 $1 $16 {[%cal Rb6c6]} Bb5 28. Bxe5) 27... Rxb8 $11 {[%emt 0:02:28]} 28. Bxb8 {[%emt 0:00:04]} d4 {[%emt 0:01:59]} 29. cxd4 {[%emt 0:01:09]} exd4 {[%emt 0:00:48]} 30. Bd6 {[%emt 0:10:59]} Bd5 {[%emt 0:02:36][%cal Oh7h6]} 31. a4 {[%emt 0:02:46]} (31. Qb6 $5 Qe8 32. Qb4 $14) 31... h6 $1 {[%emt 0:05:48]} 32. a5 {[%emt 0:01:59]} Qe4 {[%emt 0:00:41] Inhibits Qd3. Hoping for ...d3.} 33. Qc8+ {[%emt 0:01:54]} Kh7 {[%emt 0:00:04]} 34. Qd7 {[%emt 0:02:57]} d3 {[%emt 0:02:20][%cal Od3d2] ( -> ...d2!)} 35. a6 $2 {[%emt 0:01:22][%mdl 8192] [#]} (35. Bf4 $15) 35... d2 $1 {[%emt 0:00:20][%mdl 512]} 36. Nxd2 {[%emt 0:00:13]} (36. Bg3 Qb1+) 36... Qxg2# {[%emt 0:00:03] What a bad dream for White.   Weighted Error Value: White=0.38/Black=0.17 (very precise) .  Loses game:     	White=1     	---        Mistake:       	White=3     	Black=3      Inaccurate:     	White=2     	Black=2      OK:         	White=9     	Black=11     Best:        	White=2     	Black=2      Strong:       	---       	Black=1      Brilliant:      	---       	Black=1} 0-1

[Event "Swiss National League-A 2024"]
[Site "Luzern"]
[Date "2024.10.12"]
[Round "8.27"]
[White "Boffa, Mauro"]
[Black "Hochstrasser, Michael"]
[Result "1/2-1/2"]
[ECO "D10"]
[WhiteElo "2206"]
[BlackElo "2316"]
[Annotator "RC"]
[PlyCount "62"]
[EventDate "2023.10.03"]
[EventType "team-tourn"]
[EventCountry "SUI"]
[SourceTitle "playchess.com"]
[Source "ChessBase"]
[SourceQuality "1"]
[TimeControl "40/8400+30:20/3000+30:900+30"]

1. d4 {[%emt 0:40:03]} d5 {[%emt 0:40:14]} 2. c4 {[%emt 0:00:06]} c6 {[%emt 0:00:03]} 3. cxd5 {[%emt 0:00:07]} cxd5 {[%emt 0:00:07]} 4. Bg5 {[%emt 0:00:05]} Nc6 {[%emt 0:05:30]} 5. Nc3 {[%emt 0:00:43]} Nf6 {[%emt 0:00:47]} 6. Bxf6 {[%emt 0:00:09]} gxf6 {[%emt 0:00:12]} 7. e3 {[%emt 0:00:06]} e6 {[%emt 0:03:15]} 8. Bd3 {[%emt 0:00:07]} Bd6 {[%emt 0:04:23]} 9. f4 {[%emt 0:11:17]} Bd7 {[%emt 0:07:03]} 10. Nf3 {[%emt 0:09:05]} f5 {[%emt 0:12:52]} 11. O-O {[%emt 0:03:32]} f6 {[%emt 0:06:51]} 12. Rc1 {[%emt 0:04:33]} O-O {[%emt 0:02:09]} 13. Kh1 {[%emt 0:14:01]} Kh8 {[%emt 0:00:32]} 14. Nh4 {[%emt 0:07:21]} Rg8 {[%emt 0:02:01]} 15. Rg1 {[%emt 0:06:47]} Qf8 {[%emt 0:06:28]} 16. g3 {[%emt 0:20:09]} Rc8 {[%emt 0:06:49]} 17. Rg2 {[%emt 0:07:33]} Qh6 {[%emt 0:11:07]} 18. Qe2 {[%emt 0:01:39]} Ne7 {[%emt 0:09:01]} 19. Rcg1 {[%emt 0:01:00]} Be8 {[%emt 0:01:59]} 20. h3 {[%emt 0:03:13]} Rc7 {[%emt 0:12:49]} 21. Nb5 {[%emt 0:02:02]} Bxb5 {[%emt 0:00:15]} 22. Bxb5 {[%emt 0:00:01]} Ng6 {[%emt 0:06:07]} 23. Nxg6+ {[%emt 0:03:47]} Rxg6 {[%emt 0:00:28]} 24. Rh2 {[%emt 0:01:24]} Rg8 {[%emt 0:00:34]} 25. Bd3 {[%emt 0:01:02]} Rcg7 {[%emt 0:03:54]} 26. Qf2 {[%emt 0:01:49]} Qh5 {[%emt 0:01:23]} 27. Be2 {[%emt 0:00:48]} Qf7 {[%emt 0:00:40]} 28. Rhg2 {[%emt 0:00:50]} Qc7 {[%emt 0:02:34]} 29. Bd3 {[%emt 0:00:47]} Qf7 {[%emt 0:01:37]} 30. Be2 {[%emt 0:00:09]} Qc7 {[%emt 0:00:11]} 31. Bd3 {[%emt 0:00:05]} Qf7 {[%emt 0:00:08]} 1/2-1/2

[Event "Swiss National League-A 2024"]
[Site "Luzern"]
[Date "2024.10.12"]
[Round "8.28"]
[White "Gaehler, Marco"]
[Black "Loeffler, Markus"]
[Result "1/2-1/2"]
[ECO "C00"]
[WhiteElo "2312"]
[BlackElo "2256"]
[Annotator "RC"]
[PlyCount "92"]
[EventDate "2023.10.03"]
[EventType "team-tourn"]
[EventCountry "SUI"]
[SourceTitle "playchess.com"]
[Source "ChessBase"]
[SourceQuality "1"]
[TimeControl "40/8400+30:20/3000+30:900+30"]

1. e4 {[%emt 0:40:03]} e6 {[%emt 0:40:05]} 2. Nf3 {[%emt 0:01:50]} d5 {[%emt 0:00:32]} 3. e5 {[%emt 0:00:05]} c5 {[%emt 0:01:43]} 4. b4 {[%emt 0:00:05]} cxb4 {[%emt 0:03:21]} 5. a3 {[%emt 0:00:13]} bxa3 {[%emt 0:04:39]} 6. d4 {[%emt 0:01:34]} Nc6 {[%emt 0:00:38]} 7. Bd3 {[%emt 0:00:42]} h6 {[%emt 0:11:11]} 8. O-O {[%emt 0:03:13]} Bd7 {[%emt 0:00:29]} 9. Nxa3 {[%emt 0:19:22]} Rc8 {[%emt 0:04:45]} 10. c3 {[%emt 0:08:38]} a6 {[%emt 0:00:47]} 11. Nd2 {[%emt 0:07:27]} Na5 {[%emt 0:10:00]} 12. Bb2 {[%emt 0:02:23]} Ne7 {[%emt 0:03:45]} 13. f4 {[%emt 0:00:58]} Nf5 {[%emt 0:02:11]} 14. Qf3 {[%emt 0:01:15]} g6 {[%emt 0:11:01]} 15. g4 {[%emt 0:08:08]} Nh4 {[%emt 0:01:10]} 16. Qg3 {[%emt 0:00:49]} Be7 {[%emt 0:08:04]} 17. Nc2 {[%emt 0:03:59]} Bb5 {[%emt 0:05:23]} 18. Bxb5+ {[%emt 0:02:03]} axb5 {[%emt 0:03:34]} 19. Ne3 {[%emt 0:00:26]} Nc4 {[%emt 0:06:47]} 20. Ndxc4 {[%emt 0:01:13]} dxc4 {[%emt 0:00:09]} 21. f5 {[%emt 0:02:13]} gxf5 {[%emt 0:02:38]} 22. gxf5 {[%emt 0:00:56]} Bg5 {[%emt 0:02:43]} 23. fxe6 {[%emt 0:06:53]} fxe6 {[%emt 0:00:59]} 24. Ng4 {[%emt 0:01:00]} Qd5 {[%emt 0:01:53]} 25. Bc1 {[%emt 0:02:06]} Be7 {[%emt 0:05:50]} 26. Bxh6 {[%emt 0:20:17]} Kd7 {[%emt 0:05:23]} 27. Rf7 {[%emt 0:00:30]} Kc6 {[%emt 0:03:52]} 28. Raf1 {[%emt 0:07:14]} Rcg8 {[%emt 0:01:19]} 29. Bg7 {[%emt 0:00:47]} Nf5 {[%emt 0:01:16]} 30. R1xf5 {[%emt 0:00:18]} exf5 {[%emt 0:00:10]} 31. Rxe7 {[%emt 0:01:06]} fxg4 {[%emt 0:04:21]} 32. Bxh8 {[%emt 0:03:04]} Rxh8 {[%emt 0:00:09]} 33. Qxg4 {[%emt 0:00:53]} b4 {[%emt 0:01:04]} 34. cxb4 {[%emt 0:01:08]} Rg8 {[%emt 0:00:45]} 35. Rg7 {[%emt 0:00:10]} Rxg7 {[%emt 0:00:09]} 36. Qxg7 {[%emt 0:00:05]} Qxd4+ {[%emt 0:00:27]} 37. Kf1 {[%emt 0:02:54]} c3 {[%emt 0:02:36]} 38. Qg6+ {[%emt 0:00:09]} Kb5 {[%emt 0:01:34]} 39. e6 {[%emt 0:00:24]} Qc4+ {[%emt 0:01:00]} 40. Kf2 {[%emt 0:00:47]} c2 {[%emt 0:00:57]} 41. e7 {[%emt 0:50:35]} Qd4+ {[%emt 0:08:51]} 42. Kf3 {[%emt 0:00:00]} c1=Q {[%emt 0:08:42]} 43. e8=Q+ {[%emt 0:00:00]} Kxb4 {[%emt 0:00:28]} 44. Qe7+ {[%emt 0:00:00]} Ka4 {[%emt 0:01:21]} 45. Qee8+ {[%emt 0:00:00]} Kb4 {[%emt 0:04:19]} 46. Qe7+ {[%emt 0:00:00]} Ka4 {[%emt 0:02:40]} 1/2-1/2

[Event "Swiss National League-A 2024"]
[Site "Luzern"]
[Date "2024.10.12"]
[Round "8.29"]
[White "Schweizer, Simon"]
[Black "Moor, Olivier"]
[Result "1-0"]
[ECO "C01"]
[WhiteElo "2124"]
[BlackElo "2286"]
[Annotator "RC"]
[PlyCount "135"]
[EventDate "2023.10.03"]
[EventType "team-tourn"]
[EventCountry "SUI"]
[SourceTitle "playchess.com"]
[Source "ChessBase"]
[SourceQuality "1"]
[TimeControl "40/8400+30:20/3000+30:900+30"]

1. e4 {[%emt 0:40:04]} e6 {[%emt 0:40:07]} 2. d4 {[%emt 0:00:10]} d5 {[%emt 0:00:04]} 3. Bd3 {[%emt 0:00:08]} dxe4 {[%emt 0:03:57]} 4. Bxe4 {[%emt 0:00:09]} Nf6 {[%emt 0:00:07]} 5. Bf3 {[%emt 0:00:05]} c5 {[%emt 0:00:09]} 6. Ne2 {[%emt 0:00:09]} Be7 {[%emt 0:03:26]} 7. O-O {[%emt 0:00:11]} O-O {[%emt 0:05:35]} 8. Nbc3 {[%emt 0:00:23]} a6 {[%emt 0:07:49]} 9. Be3 {[%emt 0:01:06]} cxd4 {[%emt 0:04:46]} 10. Qxd4 {[%emt 0:00:35]} Nc6 {[%emt 0:16:22]} 11. Qxd8 {[%emt 0:05:43]} Rxd8 {[%emt 0:00:07]} 12. Na4 {[%emt 0:02:52]} Nd7 {[%emt 0:08:23]} 13. Bxc6 {[%emt 0:11:14]} bxc6 {[%emt 0:00:16]} 14. Nd4 {[%emt 0:00:12]} Bb7 {[%emt 0:05:03]} 15. Nb3 {[%emt 0:02:25]} Rab8 {[%emt 0:13:51]} 16. Rfd1 {[%emt 0:06:45]} Kf8 {[%emt 0:12:03]} 17. Ba7 {[%emt 0:12:54]} Ra8 {[%emt 0:02:25]} 18. Bb6 {[%emt 0:05:02]} Nxb6 {[%emt 0:01:14]} 19. Nxb6 {[%emt 0:00:05]} Rxd1+ {[%emt 0:01:55]} 20. Rxd1 {[%emt 0:00:07]} Rd8 {[%emt 0:00:09]} 21. Rxd8+ {[%emt 0:01:44]} Bxd8 {[%emt 0:00:48]} 22. Nc4 {[%emt 0:01:49]} Ke7 {[%emt 0:03:31]} 23. Nba5 {[%emt 0:00:43]} Ba8 {[%emt 0:00:49]} 24. b4 {[%emt 0:00:24]} f6 {[%emt 0:12:07]} 25. a3 {[%emt 0:02:37]} e5 {[%emt 0:00:06]} 26. f3 {[%emt 0:01:47]} Bxa5 {[%emt 0:04:28]} 27. Nxa5 {[%emt 0:00:09]} c5 {[%emt 0:00:07]} 28. bxc5 {[%emt 0:01:46]} Ke6 {[%emt 0:00:41]} 29. c4 {[%emt 0:00:29]} f5 {[%emt 0:00:05]} 30. Kf2 {[%emt 0:00:33]} g5 {[%emt 0:00:06]} 31. g3 {[%emt 0:01:36]} h5 {[%emt 0:00:57]} 32. f4 {[%emt 0:05:27]} exf4 {[%emt 0:01:46]} 33. gxf4 {[%emt 0:00:07]} gxf4 {[%emt 0:00:01]} 34. h4 {[%emt 0:00:22]} Be4 {[%emt 0:00:36]} 35. Nb3 {[%emt 0:01:58]} Ke5 {[%emt 0:00:44]} 36. Nd2 {[%emt 0:01:12]} a5 {[%emt 0:01:31]} 37. Nf3+ {[%emt 0:00:16]} Ke6 {[%emt 0:00:30]} 38. Ke2 {[%emt 0:03:17]} Kd7 {[%emt 0:01:44]} 39. Nd4 {[%emt 0:01:11]} a4 {[%emt 0:00:37]} 40. Kd2 {[%emt 0:01:16]} Ke7 {[%emt 0:00:32]} 41. Ne2 {[%emt 0:51:00]} f3 {[%emt 0:03:31]} 42. Nf4 {[%emt 0:00:00]} Kf6 {[%emt 0:00:24]} 43. Ke3 {[%emt 0:00:00]} Ke5 {[%emt 0:00:42]} 44. Nxh5 {[%emt 0:00:00]} f4+ {[%emt 0:03:11]} 45. Kf2 {[%emt 0:00:00]} Kd4 {[%emt 0:14:10]} 46. Nf6 {[%emt 0:00:00]} Bf5 {[%emt 0:01:42]} 47. Kxf3 {[%emt 0:00:00]} Kxc5 {[%emt 0:00:45]} 48. Kxf4 {[%emt 0:00:00]} Bc2 {[%emt 0:00:28]} 49. Nd5 {[%emt 0:00:00]} Bh7 {[%emt 0:01:48]} 50. Ne3 {[%emt 0:00:00]} Kd4 {[%emt 0:00:05]} 51. h5 {[%emt 0:00:00]} Bg8 {[%emt 0:00:25]} 52. h6 {[%emt 0:00:00]} Bh7 {[%emt 0:00:05]} 53. c5 {[%emt 0:00:00]} Kxc5 {[%emt 0:00:17]} 54. Ke5 {[%emt 0:00:00]} Bg6 {[%emt 0:00:23]} 55. Kf6 {[%emt 0:00:00]} Bh7 {[%emt 0:00:05]} 56. Ke5 {[%emt 0:00:00]} Bg6 {[%emt 0:00:18]} 57. Nd5 {[%emt 0:00:00]} Kc4 {[%emt 0:00:41]} 58. Nf4 {[%emt 0:00:00]} Bh7 {[%emt 0:01:00]} 59. Kf6 {[%emt 0:00:00]} Kb3 {[%emt 0:00:23]} 60. Kg7 {[%emt 0:00:00]} Bc2 {[%emt 0:04:04]} 61. Ng6 {[%emt 0:00:00]} Kxa3 {[%emt 0:15:04]} 62. h7 {[%emt 0:00:00]} Kb2 {[%emt 0:00:15]} 63. h8=Q {[%emt 0:00:00]} a3 {[%emt 0:00:02]} 64. Qb8+ {[%emt 0:00:00]} Bb3 {[%emt 0:00:49]} 65. Qe5+ {[%emt 0:00:00]} Kb1 {[%emt 0:00:02]} 66. Qe1+ {[%emt 0:00:00]} Kb2 {[%emt 0:00:10]} 67. Qd2+ {[%emt 0:00:00]} Kb1 {[%emt 0:00:10]} 68. Nf4 {[%emt 0:00:00]} 1-0

[Event "Swiss National League-A 2024"]
[Site "Luzern"]
[Date "2024.10.12"]
[Round "8.30"]
[White "Maeser, Fabian"]
[Black "Salzgeber, Frank"]
[Result "1-0"]
[ECO "B52"]
[WhiteElo "2268"]
[BlackElo "2085"]
[Annotator "RC"]
[PlyCount "107"]
[EventDate "2023.10.03"]
[EventType "team-tourn"]
[EventCountry "SUI"]
[SourceTitle "playchess.com"]
[Source "ChessBase"]
[SourceQuality "1"]
[TimeControl "40/8400+30:20/3000+30:900+30"]

1. e4 {[%emt 0:40:04]} c5 {[%emt 0:40:42]} 2. Nf3 {[%emt 0:00:21]} d6 {[%emt 0:00:37]} 3. Bb5+ {[%emt 0:01:15]} Bd7 {[%emt 0:00:27]} 4. Bxd7+ {[%emt 0:00:22]} Qxd7 {[%emt 0:00:36]} 5. c4 {[%emt 0:02:25]} Nc6 {[%emt 0:00:27]} 6. Nc3 {[%emt 0:03:02]} g6 {[%emt 0:00:44]} 7. d4 {[%emt 0:01:13]} cxd4 {[%emt 0:00:57]} 8. Nxd4 {[%emt 0:00:07]} Bg7 {[%emt 0:00:23]} 9. Be3 {[%emt 0:00:40]} Nf6 {[%emt 0:00:25]} 10. f3 {[%emt 0:01:09]} O-O {[%emt 0:03:18]} 11. O-O {[%emt 0:03:24]} Rfd8 {[%emt 0:21:53]} 12. Qd3 {[%emt 0:15:33]} Rac8 {[%emt 0:22:09]} 13. b3 {[%emt 0:00:51]} e6 {[%emt 0:06:34]} 14. Rad1 {[%emt 0:08:25]} d5 {[%emt 0:04:16]} 15. exd5 {[%emt 0:07:10]} exd5 {[%emt 0:00:12]} 16. Nxc6 {[%emt 0:02:11]} bxc6 {[%emt 0:00:26]} 17. Bd4 {[%emt 0:09:55]} dxc4 {[%emt 0:04:05]} 18. Qxc4 {[%emt 0:00:42]} Nd5 {[%emt 0:00:38]} 19. Bxg7 {[%emt 0:06:51]} Kxg7 {[%emt 0:00:07]} 20. Rfe1 {[%emt 0:03:27]} Qf5 {[%emt 0:06:43]} 21. Ne4 {[%emt 0:04:20]} Rc7 {[%emt 0:10:52]} 22. Qd4+ {[%emt 0:04:26]} f6 {[%emt 0:06:57]} 23. Nc5 {[%emt 0:06:38]} Rd6 {[%emt 0:00:26]} 24. Re4 {[%emt 0:05:17]} Rf7 {[%emt 0:01:19]} 25. Rde1 {[%emt 0:00:31]} g5 {[%emt 0:00:59]} 26. Ne6+ {[%emt 0:02:44]} Kh6 {[%emt 0:00:52]} 27. Qd2 {[%emt 0:02:45]} Rfd7 {[%emt 0:01:46]} 28. Qc1 {[%emt 0:06:26]} Re7 {[%emt 0:07:04]} 29. Nxg5 {[%emt 0:05:37]} fxg5 {[%emt 0:01:47]} 30. Rxe7 {[%emt 0:00:08]} Nxe7 {[%emt 0:02:05]} 31. Rxe7 {[%emt 0:00:07]} Rd1+ {[%emt 0:01:11]} 32. Qxd1 {[%emt 0:00:08]} Qc5+ {[%emt 0:00:08]} 33. Kf1 {[%emt 0:00:45]} Qxe7 {[%emt 0:00:04]} 34. Qd2 {[%emt 0:00:46]} Kh5 {[%emt 0:04:21]} 35. g4+ {[%emt 0:02:33]} Kg6 {[%emt 0:00:06]} 36. Qc2+ {[%emt 0:00:12]} Kg7 {[%emt 0:00:11]} 37. Qxc6 {[%emt 0:00:36]} Qe3 {[%emt 0:00:15]} 38. Qb7+ {[%emt 0:02:16]} Kf6 {[%emt 0:00:23]} 39. Qc6+ {[%emt 0:00:12]} Kg7 {[%emt 0:00:08]} 40. Qe4 {[%emt 0:01:17]} Qc1+ {[%emt 0:00:09]} 41. Kf2 {[%emt 0:50:46]} Qd2+ {[%emt 0:03:48]} 42. Qe2 {[%emt 0:00:00]} Qd6 {[%emt 0:00:35]} 43. Qb2+ {[%emt 0:00:00]} Kg6 {[%emt 0:00:29]} 44. Kg2 {[%emt 0:00:00]} Qd3 {[%emt 0:02:25]} 45. Qf2 {[%emt 0:00:00]} h5 {[%emt 0:01:54]} 46. gxh5+ {[%emt 0:00:00]} Kxh5 {[%emt 0:00:23]} 47. Qxa7 {[%emt 0:00:00]} Qc2+ {[%emt 0:00:18]} 48. Qf2 {[%emt 0:00:00]} Qd3 {[%emt 0:00:09]} 49. b4 {[%emt 0:00:00]} Qc4 {[%emt 0:02:53]} 50. Qb2 {[%emt 0:00:00]} Qb5 {[%emt 0:00:21]} 51. a3 {[%emt 0:00:00]} Kh6 {[%emt 0:00:38]} 52. h3 {[%emt 0:00:00]} Kh5 {[%emt 0:00:10]} 53. a4 {[%emt 0:00:00]} Qxa4 {[%emt 0:00:23]} 54. b5 {[%emt 0:00:00]} 1-0

[Event "Swiss National League-A 2024"]
[Site "Luzern"]
[Date "2024.10.12"]
[Round "8.31"]
[White "Barth, Can-Elian"]
[Black "Fend, Juergen"]
[Result "0-1"]
[ECO "D31"]
[WhiteElo "2065"]
[BlackElo "2264"]
[Annotator "RC"]
[PlyCount "82"]
[EventDate "2023.10.03"]
[EventType "team-tourn"]
[EventCountry "SUI"]
[SourceTitle "playchess.com"]
[Source "ChessBase"]
[SourceQuality "1"]
[TimeControl "40/8400+30:20/3000+30:900+30"]

1. d4 {[%emt 0:40:04]} d5 {[%emt 0:40:49]} 2. c4 {[%emt 0:00:04]} c6 {[%emt 0:00:31]} 3. Nc3 {[%emt 0:00:05]} e6 {[%emt 0:00:29]} 4. e4 {[%emt 0:04:37]} dxe4 {[%emt 0:02:21]} 5. Nxe4 {[%emt 0:00:05]} Bb4+ {[%emt 0:00:33]} 6. Bd2 {[%emt 0:00:08]} Qxd4 {[%emt 0:00:26]} 7. Bxb4 {[%emt 0:00:05]} Qxe4+ {[%emt 0:00:05]} 8. Ne2 {[%emt 0:00:57]} Na6 {[%emt 0:02:56]} 9. Bf8 {[%emt 0:00:49]} Ne7 {[%emt 0:01:29]} 10. Bxg7 {[%emt 0:02:24]} Nb4 {[%emt 0:20:48]} 11. Bxh8 {[%emt 0:06:29]} Nd3+ {[%emt 0:12:02]} 12. Kd2 {[%emt 0:01:11]} Nxf2 {[%emt 0:00:34]} 13. Qc2 {[%emt 0:02:10]} Qh4 {[%emt 0:14:37]} 14. Rg1 {[%emt 0:36:37]} e5 {[%emt 0:08:33]} 15. Ng3 {[%emt 0:28:41]} Qxh2 {[%emt 0:11:13]} 16. Bxe5 {[%emt 0:06:56]} Ng6 {[%emt 0:19:39]} 17. Bc7 {[%emt 0:08:15]} Qxg1 {[%emt 0:02:09]} 18. Re1+ {[%emt 0:02:59]} Be6 {[%emt 0:01:47]} 19. Qf5 {[%emt 0:00:11]} Kd7 {[%emt 0:00:54]} 20. Rxe6 {[%emt 0:06:58]} fxe6 {[%emt 0:00:11]} 21. Qf7+ {[%emt 0:00:17]} Ne7 {[%emt 0:01:20]} 22. Qf4 {[%emt 0:00:49]} Rg8 {[%emt 0:03:40]} 23. Nh5 {[%emt 0:00:31]} Ng4 {[%emt 0:02:48]} 24. Be2 {[%emt 0:00:30]} Qxg2 {[%emt 0:01:43]} 25. Qd6+ {[%emt 0:00:07]} Ke8 {[%emt 0:00:06]} 26. Qxe6 {[%emt 0:00:26]} Rg6 {[%emt 0:00:12]} 27. Ng7+ {[%emt 0:01:03]} Rxg7 {[%emt 0:00:56]} 28. Bd6 {[%emt 0:00:21]} Qf2 {[%emt 0:00:24]} 29. Bxe7 {[%emt 0:00:25]} Rxe7 {[%emt 0:00:34]} 30. Qxg4 {[%emt 0:00:23]} Rxe2+ {[%emt 0:00:47]} 31. Qxe2+ {[%emt 0:00:07]} Qxe2+ {[%emt 0:00:05]} 32. Kxe2 {[%emt 0:00:03]} c5 {[%emt 0:00:07]} 33. a3 {[%emt 0:00:44]} Ke7 {[%emt 0:00:19]} 34. b4 {[%emt 0:00:29]} b6 {[%emt 0:00:50]} 35. Ke3 {[%emt 0:00:46]} Ke6 {[%emt 0:00:43]} 36. Ke4 {[%emt 0:00:07]} cxb4 {[%emt 0:00:55]} 37. axb4 {[%emt 0:00:05]} a5 {[%emt 0:00:09]} 38. c5 {[%emt 0:01:02]} axb4 {[%emt 0:00:09]} 39. cxb6 {[%emt 0:00:10]} Kd6 {[%emt 0:00:05]} 40. Kd4 {[%emt 0:00:25]} h5 {[%emt 0:00:11]} 41. b7 {[%emt 0:50:48]} Kc7 {[%emt 0:50:17]} 0-1